[Event "Titled Tuesday Blitz April 18 Early 2023"]
[White "Dimitrov, Atanas"]
[Black "Derichs, Roger"]
[WhiteFideId "2901315"]
[BlackFideId "4630076"]
[WhiteElo "2666"]
[BlackElo "2338"]
[Result "1-0"]
[Round "01"]
[TimeControl "180+2"]
[Date "2023.04.18"]
[WhiteClock "0:01:01"]
[BlackClock "0:00:01"]

1. Nf3 {[%clk 0:03:00]}  d5 {[%clk 0:02:59]} 2. e3 {[%clk 0:03:00]}  e6 {[%clk 0:02:57]} 3. c4 {[%clk 0:03:00]}  Nf6 {[%clk 0:02:51]} 4. Nc3 {[%clk 0:03:01]}  Be7 {[%clk 0:02:48]} 5. b3 {[%clk 0:03:01]}  b6 {[%clk 0:02:47]} 6. Bb2 {[%clk 0:03:02]}  Bb7 {[%clk 0:02:46]} 7. Be2 {[%clk 0:03:02]}  O-O {[%clk 0:02:43]} 8. O-O {[%clk 0:03:03]}  c5 {[%clk 0:02:42]} 9. cxd5 {[%clk 0:03:02]}  Nxd5 {[%clk 0:02:42]} 10. d4 {[%clk 0:03:03]}  Nxc3 {[%clk 0:02:40]} 11. Bxc3 {[%clk 0:03:03]}  Nc6 {[%clk 0:02:38]} 12. Rc1 {[%clk 0:03:01]}  cxd4 {[%clk 0:02:37]} 13. Nxd4 {[%clk 0:03:02]}  Nxd4 {[%clk 0:02:36]} 14. Bxd4 {[%clk 0:03:02]}  Rc8 {[%clk 0:02:33]} 15. Rxc8 {[%clk 0:02:58]}  Qxc8 {[%clk 0:02:26]} 16. Qa1 {[%clk 0:02:59]}  f6 {[%clk 0:02:25]} 17. Rc1 {[%clk 0:02:57]}  Qd7 {[%clk 0:02:25]} 18. Rd1 {[%clk 0:02:56]}  Qc8 {[%clk 0:02:15]} 19. h3 {[%clk 0:02:52]}  Rd8 {[%clk 0:02:09]} 20. Bc4 {[%clk 0:02:49]}  Bd5 {[%clk 0:02:03]} 21. Bf1 {[%clk 0:02:42]}  e5 {[%clk 0:01:49]} 22. Rc1 {[%clk 0:02:41]}  Qb7 {[%clk 0:01:46]} 23. Bc3 {[%clk 0:02:40]}  Rc8 {[%clk 0:01:41]} 24. Rd1 {[%clk 0:02:39]}  Be6 {[%clk 0:01:39]} 25. Qb2 {[%clk 0:02:37]}  Qc7 {[%clk 0:01:35]} 26. Rc1 {[%clk 0:02:20]}  Qd7 {[%clk 0:01:34]} 27. a4 {[%clk 0:02:11]}  Qd6 {[%clk 0:01:29]} 28. Bd2 {[%clk 0:02:06]}  Rxc1 {[%clk 0:01:26]} 29. Bxc1 {[%clk 0:02:07]}  Qc6 {[%clk 0:01:16]} 30. Bd2 {[%clk 0:02:05]}  Bd5 {[%clk 0:01:13]} 31. Qb1 {[%clk 0:01:58]}  h6 {[%clk 0:01:08]} 32. Bb5 {[%clk 0:01:55]}  Qe6 {[%clk 0:01:07]} 33. b4 {[%clk 0:01:51]}  Qd6 {[%clk 0:00:59]} 34. Be1 {[%clk 0:01:48]}  Be6 {[%clk 0:00:55]} 35. Qc2 {[%clk 0:01:45]}  Kf7 {[%clk 0:00:51]} 36. Bd3 {[%clk 0:01:41]}  Qd7 {[%clk 0:00:48]} 37. a5 {[%clk 0:01:38]}  Qc8 {[%clk 0:00:42]} 38. Qb1 {[%clk 0:01:33]}  Qd7 {[%clk 0:00:37]} 39. a6 {[%clk 0:01:30]}  f5 {[%clk 0:00:35]} 40. Bc3 {[%clk 0:01:23]}  e4 {[%clk 0:00:33]} 41. Bf1 {[%clk 0:01:23]}  Bf6 {[%clk 0:00:28]} 42. Bxf6 {[%clk 0:01:24]}  Kxf6 {[%clk 0:00:28]} 43. Qb2+ {[%clk 0:01:23]}  Kf7 {[%clk 0:00:27]} 44. b5 {[%clk 0:01:22]}  Qd5 {[%clk 0:00:24]} 45. Qc3 {[%clk 0:01:16]}  Qd7 {[%clk 0:00:17]} 46. g3 {[%clk 0:01:11]}  Qe7 {[%clk 0:00:12]} 47. h4 {[%clk 0:01:09]}  Qd7 {[%clk 0:00:08]} 48. Qe5 {[%clk 0:01:06]}  Qd5 {[%clk 0:00:04]} 49. Qb8 {[%clk 0:01:04]}  Qd7 {[%clk 0:00:01]} 50. Qb7 {[%clk 0:01:01]} 1-0


[Site "https://www.chess.com"]

[Event "Titled Tuesday Blitz April 18 Early 2023"]
[White "crosky"]
[Black "Skvortsov, Andrei"]
[BlackFideId "24108600"]
[WhiteElo "2338"]
[BlackElo "2259"]
[Result "0-1"]
[Round "01"]
[TimeControl "180+2"]
[Date "2023.04.18"]
[WhiteClock "0:00:06"]
[BlackClock "0:01:08"]

1. c4 {[%clk 0:03:00]}  e5 {[%clk 0:02:58]} 2. g3 {[%clk 0:03:01]}  g6 {[%clk 0:02:52]} 3. Bg2 {[%clk 0:02:58]}  Bg7 {[%clk 0:02:52]} 4. Nc3 {[%clk 0:02:59]}  Ne7 {[%clk 0:02:53]} 5. e3 {[%clk 0:02:59]}  O-O {[%clk 0:02:53]} 6. Nge2 {[%clk 0:02:59]}  c6 {[%clk 0:02:53]} 7. O-O {[%clk 0:02:47]}  Na6 {[%clk 0:02:51]} 8. Rb1 {[%clk 0:02:41]}  Nc7 {[%clk 0:02:49]} 9. c5 {[%clk 0:02:38]}  b6 {[%clk 0:02:48]} 10. b4 {[%clk 0:02:37]}  Rb8 {[%clk 0:02:48]} 11. Bb2 {[%clk 0:02:29]}  h6 {[%clk 0:02:43]} 12. d4 {[%clk 0:02:29]}  exd4 {[%clk 0:02:38]} 13. exd4 {[%clk 0:02:24]}  Ne6 {[%clk 0:02:32]} 14. Ne4 {[%clk 0:02:23]}  d5 {[%clk 0:02:23]} 15. cxd6 {[%clk 0:02:13]}  Nf5 {[%clk 0:02:24]} 16. Rc1 {[%clk 0:02:14]}  Nxd6 {[%clk 0:02:17]} 17. Rxc6 {[%clk 0:02:08]}  Nxe4 {[%clk 0:02:16]} 18. Bxe4 {[%clk 0:02:09]}  Bb7 {[%clk 0:02:16]} 19. Rxe6 {[%clk 0:01:23]}  fxe6 {[%clk 0:02:17]} 20. Bxb7 {[%clk 0:01:20]}  Rxb7 {[%clk 0:02:14]} 21. Nf4 {[%clk 0:01:21]}  Qf6 {[%clk 0:02:11]} 22. Qf3 {[%clk 0:01:15]}  Rd7 {[%clk 0:02:07]} 23. Qc6 {[%clk 0:01:13]}  Re7 {[%clk 0:02:02]} 24. Ba1 {[%clk 0:01:07]}  Qf5 {[%clk 0:01:56]} 25. Re1 {[%clk 0:01:00]}  Rfe8 {[%clk 0:01:55]} 26. b5 {[%clk 0:00:53]}  g5 {[%clk 0:01:52]} 27. Ng2 {[%clk 0:00:46]}  Qd5 {[%clk 0:01:47]} 28. Qc2 {[%clk 0:00:41]}  Qxb5 {[%clk 0:01:45]} 29. Ne3 {[%clk 0:00:37]}  Rf7 {[%clk 0:01:38]} 30. Ng4 {[%clk 0:00:36]}  Qf5 {[%clk 0:01:36]} 31. Qd1 {[%clk 0:00:28]}  h5 {[%clk 0:01:27]} 32. Ne3 {[%clk 0:00:23]}  Qf3 {[%clk 0:01:26]} 33. Qxf3 {[%clk 0:00:15]}  Rxf3 {[%clk 0:01:27]} 34. Kg2 {[%clk 0:00:16]}  Rff8 {[%clk 0:01:25]} 35. Nc4 {[%clk 0:00:17]}  Rd8 {[%clk 0:01:23]} 36. Rxe6 {[%clk 0:00:12]}  Bxd4 {[%clk 0:01:21]} 37. Bxd4 {[%clk 0:00:13]}  Rxd4 {[%clk 0:01:21]} 38. Ne5 {[%clk 0:00:14]}  Rd2 {[%clk 0:01:19]} 39. Rg6+ {[%clk 0:00:09]}  Kh7 {[%clk 0:01:17]} 40. Rxg5 {[%clk 0:00:08]}  Rfxf2+ {[%clk 0:01:17]} 41. Kg1 {[%clk 0:00:08]}  Rxh2 {[%clk 0:01:10]} 42. Nf3 {[%clk 0:00:06]}  Rhg2+ {[%clk 0:01:11]} 43. Kh1 {[%clk 0:00:06]}  Rxa2 {[%clk 0:01:09]} 44. Rxh5+ {[%clk 0:00:06]}  Kg6 {[%clk 0:01:09]} 45. Nh4+ {[%clk 0:00:05]}  Kxh5 {[%clk 0:01:08]} 46. Nxg2 {[%clk 0:00:06]} 0-1


[Site "https://www.chess.com"]

[Event "Titled Tuesday Blitz April 18 Early 2023"]
[White "Aaditya Dhingra"]
[Black "kuanysh1981"]
[WhiteFideId "25678191"]
[WhiteElo "2083"]
[BlackElo "2338"]
[Result "1-0"]
[Round "01"]
[TimeControl "180+2"]
[Date "2023.04.18"]
[WhiteClock "0:00:17"]
[BlackClock "0:00:05"]

1. d4 {[%clk 0:03:00]}  Nf6 {[%clk 0:02:57]} 2. c4 {[%clk 0:03:00]}  e6 {[%clk 0:02:56]} 3. Nc3 {[%clk 0:02:59]}  Bb4 {[%clk 0:02:54]} 4. Bd2 {[%clk 0:03:00]}  O-O {[%clk 0:02:53]} 5. Nf3 {[%clk 0:02:59]}  b6 {[%clk 0:02:50]} 6. e3 {[%clk 0:02:59]}  Bb7 {[%clk 0:02:48]} 7. Bd3 {[%clk 0:03:00]}  d5 {[%clk 0:02:44]} 8. cxd5 {[%clk 0:02:59]}  exd5 {[%clk 0:02:42]} 9. O-O {[%clk 0:02:59]}  a6 {[%clk 0:02:41]} 10. Rc1 {[%clk 0:02:58]}  Bd6 {[%clk 0:02:41]} 11. Ne2 {[%clk 0:02:57]}  Nbd7 {[%clk 0:02:39]} 12. Ng3 {[%clk 0:02:57]}  g6 {[%clk 0:02:37]} 13. Qe2 {[%clk 0:02:53]}  Re8 {[%clk 0:02:36]} 14. Rfd1 {[%clk 0:02:50]}  Qe7 {[%clk 0:02:34]} 15. Be1 {[%clk 0:02:48]}  Ne4 {[%clk 0:02:29]} 16. Nd2 {[%clk 0:02:37]}  Nxg3 {[%clk 0:02:14]} 17. hxg3 {[%clk 0:02:36]}  Nf6 {[%clk 0:02:07]} 18. Nf1 {[%clk 0:02:26]}  Ne4 {[%clk 0:02:05]} 19. f3 {[%clk 0:02:24]}  Ng5 {[%clk 0:02:02]} 20. g4 {[%clk 0:02:22]}  Ne6 {[%clk 0:02:01]} 21. Qf2 {[%clk 0:02:18]}  c5 {[%clk 0:01:58]} 22. dxc5 {[%clk 0:02:15]}  bxc5 {[%clk 0:01:57]} 23. Bb1 {[%clk 0:02:14]}  d4 {[%clk 0:01:55]} 24. Qh4 {[%clk 0:02:08]}  dxe3 {[%clk 0:01:48]} 25. Qxe7 {[%clk 0:02:06]}  Bxe7 {[%clk 0:01:48]} 26. Nxe3 {[%clk 0:02:06]}  Nd4 {[%clk 0:01:46]} 27. Bd3 {[%clk 0:01:54]}  Bg5 {[%clk 0:01:43]} 28. Nc4 {[%clk 0:01:51]}  Bxc1 {[%clk 0:01:40]} 29. Rxc1 {[%clk 0:01:52]}  Rad8 {[%clk 0:01:35]} 30. Bf1 {[%clk 0:01:34]}  Bd5 {[%clk 0:01:21]} 31. Kf2 {[%clk 0:01:29]}  f5 {[%clk 0:01:15]} 32. gxf5 {[%clk 0:01:28]}  Nxf5 {[%clk 0:01:13]} 33. b3 {[%clk 0:01:24]}  h5 {[%clk 0:00:40]} 34. Ba5 {[%clk 0:01:22]}  Rb8 {[%clk 0:00:25]} 35. Bc7 {[%clk 0:01:15]}  Rb7 {[%clk 0:00:24]} 36. Bf4 {[%clk 0:01:12]}  Kh7 {[%clk 0:00:23]} 37. Bd3 {[%clk 0:01:02]}  Rd7 {[%clk 0:00:20]} 38. Nb6 {[%clk 0:00:59]}  Rdd8 {[%clk 0:00:20]} 39. Bxa6 {[%clk 0:00:52]}  Re6 {[%clk 0:00:17]} 40. Bc7 {[%clk 0:00:47]}  Rde8 {[%clk 0:00:15]} 41. Bb5 {[%clk 0:00:44]}  Rxb6 {[%clk 0:00:12]} 42. Bxe8 {[%clk 0:00:38]}  Ra6 {[%clk 0:00:12]} 43. a4 {[%clk 0:00:31]}  Bxb3 {[%clk 0:00:11]} 44. Bb5 {[%clk 0:00:30]}  Ra8 {[%clk 0:00:09]} 45. a5 {[%clk 0:00:27]}  c4 {[%clk 0:00:08]} 46. a6 {[%clk 0:00:27]}  Nd4 {[%clk 0:00:07]} 47. Bxc4 {[%clk 0:00:22]}  Bxc4 {[%clk 0:00:06]} 48. Rxc4 {[%clk 0:00:22]}  Nb5 {[%clk 0:00:05]} 49. Rc6 {[%clk 0:00:21]}  Kg8 {[%clk 0:00:04]} 50. Bf4 {[%clk 0:00:20]}  Nd4 {[%clk 0:00:04]} 51. Rxg6+ {[%clk 0:00:20]}  Kf7 {[%clk 0:00:05]} 52. Rd6 {[%clk 0:00:19]}  Ne6 {[%clk 0:00:05]} 53. Be3 {[%clk 0:00:19]}  h4 {[%clk 0:00:06]} 54. a7 {[%clk 0:00:18]}  Ke7 {[%clk 0:00:06]} 55. Rb6 {[%clk 0:00:18]}  Nc7 {[%clk 0:00:06]} 56. Rb7 {[%clk 0:00:17]}  Kd7 {[%clk 0:00:05]} 57. Bf4 {[%clk 0:00:17]} 1-0


[Site "https://www.chess.com"]

[Event "Titled Tuesday Blitz April 18 Early 2023"]
[White "Bogaudinov, Rushan"]
[Black "Skliarov, Viktor"]
[WhiteFideId "4129288"]
[BlackFideId "14106736"]
[WhiteElo "1967"]
[BlackElo "2317"]
[Result "0-1"]
[Round "01"]
[TimeControl "180+2"]
[Date "2023.04.18"]
[WhiteClock "0:00:02"]
[BlackClock "0:00:07"]

1. e4 {[%clk 0:02:58]}  c5 {[%clk 0:02:59]} 2. Nf3 {[%clk 0:02:57]}  Nc6 {[%clk 0:02:59]} 3. Bb5 {[%clk 0:02:56]}  e6 {[%clk 0:02:58]} 4. O-O {[%clk 0:02:53]}  Nge7 {[%clk 0:02:58]} 5. c3 {[%clk 0:02:53]}  a6 {[%clk 0:02:58]} 6. Ba4 {[%clk 0:02:53]}  b5 {[%clk 0:02:58]} 7. Bc2 {[%clk 0:02:53]}  d5 {[%clk 0:02:59]} 8. exd5 {[%clk 0:02:52]}  Nxd5 {[%clk 0:02:58]} 9. a4 {[%clk 0:02:46]}  b4 {[%clk 0:02:56]} 10. d4 {[%clk 0:02:44]}  c4 {[%clk 0:02:56]} 11. Bg5 {[%clk 0:02:36]}  Be7 {[%clk 0:02:55]} 12. Bxe7 {[%clk 0:02:35]}  Qxe7 {[%clk 0:02:55]} 13. Qe2 {[%clk 0:02:28]}  bxc3 {[%clk 0:02:16]} 14. bxc3 {[%clk 0:02:21]}  Na5 {[%clk 0:02:14]} 15. Ne5 {[%clk 0:02:12]}  Qc7 {[%clk 0:02:10]} 16. Be4 {[%clk 0:01:45]}  Bb7 {[%clk 0:02:03]} 17. Ra2 {[%clk 0:01:37]}  O-O {[%clk 0:01:58]} 18. Rb2 {[%clk 0:01:24]}  f6 {[%clk 0:01:42]} 19. Qh5 {[%clk 0:00:58]}  g6 {[%clk 0:01:35]} 20. Nxg6 {[%clk 0:00:51]}  hxg6 {[%clk 0:01:35]} 21. Qxg6+ {[%clk 0:00:50]}  Qg7 {[%clk 0:01:34]} 22. Qh5 {[%clk 0:00:44]}  f5 {[%clk 0:01:16]} 23. Bf3 {[%clk 0:00:37]}  Nf4 {[%clk 0:01:14]} 24. Rxb7 {[%clk 0:00:29]}  Nxh5 {[%clk 0:01:13]} 25. Rxg7+ {[%clk 0:00:29]}  Nxg7 {[%clk 0:01:14]} 26. Bxa8 {[%clk 0:00:29]}  Rxa8 {[%clk 0:01:15]} 27. Nd2 {[%clk 0:00:23]}  Rb8 {[%clk 0:01:14]} 28. Rb1 {[%clk 0:00:19]}  Rxb1+ {[%clk 0:01:12]} 29. Nxb1 {[%clk 0:00:20]}  Ne8 {[%clk 0:01:09]} 30. Kf1 {[%clk 0:00:19]}  Nc7 {[%clk 0:01:08]} 31. f3 {[%clk 0:00:18]}  Nd5 {[%clk 0:01:08]} 32. Ke2 {[%clk 0:00:18]}  Nb6 {[%clk 0:01:07]} 33. Ke3 {[%clk 0:00:17]}  Kf7 {[%clk 0:01:05]} 34. Kf4 {[%clk 0:00:18]}  Kf6 {[%clk 0:01:04]} 35. g4 {[%clk 0:00:18]}  Nd5+ {[%clk 0:00:38]} 36. Kg3 {[%clk 0:00:16]}  f4+ {[%clk 0:00:38]} 37. Kh4 {[%clk 0:00:14]}  Kg6 {[%clk 0:00:38]} 38. Kh3 {[%clk 0:00:12]}  Nb3 {[%clk 0:00:31]} 39. Na3 {[%clk 0:00:11]}  Nd2 {[%clk 0:00:30]} 40. Kg2 {[%clk 0:00:10]}  Kg5 {[%clk 0:00:30]} 41. Kf2 {[%clk 0:00:09]}  Nxc3 {[%clk 0:00:28]} 42. a5 {[%clk 0:00:06]}  Ncb1 {[%clk 0:00:24]} 43. Nc2 {[%clk 0:00:06]}  Nb3 {[%clk 0:00:22]} 44. Nb4 {[%clk 0:00:03]}  Nxa5 {[%clk 0:00:21]} 45. Nxa6 {[%clk 0:00:03]}  c3 {[%clk 0:00:19]} 46. Nb4 {[%clk 0:00:03]}  Nd2 {[%clk 0:00:15]} 47. Ke2 {[%clk 0:00:03]}  Kh4 {[%clk 0:00:07]} 48. Kd3 {[%clk 0:00:03]}  Nxf3 {[%clk 0:00:07]} 49. Kxc3 {[%clk 0:00:02]}  Nxh2 {[%clk 0:00:08]} 50. Nd3 {[%clk 0:00:02]}  f3 {[%clk 0:00:07]} 0-1


[Site "https://www.chess.com"]

[Event "Titled Tuesday Blitz April 18 Early 2023"]
[White "Mendez Fortes, Eduardo Jesus"]
[Black "Andersson, Bjorn 1971"]
[WhiteFideId "3502376"]
[BlackFideId "1702114"]
[WhiteElo "2307"]
[BlackElo "2176"]
[Result "1-0"]
[Round "01"]
[TimeControl "180+2"]
[Date "2023.04.18"]
[WhiteClock "0:00:11"]
[BlackClock "0:00:14"]

1. e4 {[%clk 0:03:00]}  c5 {[%clk 0:03:00]} 2. Nf3 {[%clk 0:03:00]}  Nc6 {[%clk 0:02:59]} 3. d4 {[%clk 0:03:01]}  cxd4 {[%clk 0:03:00]} 4. Nxd4 {[%clk 0:03:02]}  Nf6 {[%clk 0:03:00]} 5. Nc3 {[%clk 0:03:02]}  e5 {[%clk 0:03:00]} 6. Ndb5 {[%clk 0:03:02]}  d6 {[%clk 0:03:00]} 7. Nd5 {[%clk 0:03:03]}  Nxd5 {[%clk 0:03:00]} 8. exd5 {[%clk 0:03:04]}  Ne7 {[%clk 0:03:00]} 9. c4 {[%clk 0:02:59]}  Ng6 {[%clk 0:03:00]} 10. Qa4 {[%clk 0:02:54]}  Bd7 {[%clk 0:03:00]} 11. Qb4 {[%clk 0:02:54]}  Bxb5 {[%clk 0:02:54]} 12. Qxb5+ {[%clk 0:02:53]}  Qd7 {[%clk 0:02:54]} 13. Qb3 {[%clk 0:02:48]}  Be7 {[%clk 0:02:52]} 14. c5 {[%clk 0:02:45]}  O-O {[%clk 0:02:51]} 15. Bb5 {[%clk 0:02:43]}  Qc7 {[%clk 0:02:50]} 16. c6 {[%clk 0:02:43]}  bxc6 {[%clk 0:02:48]} 17. Bxc6 {[%clk 0:02:44]}  Rab8 {[%clk 0:02:48]} 18. Qa4 {[%clk 0:02:29]}  Bf6 {[%clk 0:02:45]} 19. O-O {[%clk 0:02:28]}  a5 {[%clk 0:02:36]} 20. Bd2 {[%clk 0:02:24]}  Rxb2 {[%clk 0:02:34]} 21. Qxa5 {[%clk 0:02:14]}  Qb8 {[%clk 0:02:21]} 22. Bc3 {[%clk 0:02:00]}  Bd8 {[%clk 0:02:17]} 23. Qa4 {[%clk 0:01:54]}  Rb6 {[%clk 0:02:05]} 24. Qc2 {[%clk 0:01:16]}  Ne7 {[%clk 0:02:03]} 25. Rfb1 {[%clk 0:01:02]}  Qa7 {[%clk 0:01:45]} 26. Bd2 {[%clk 0:00:47]}  Rxb1+ {[%clk 0:01:41]} 27. Rxb1 {[%clk 0:00:48]}  Bb6 {[%clk 0:01:40]} 28. Bb4 {[%clk 0:00:47]}  Rd8 {[%clk 0:01:29]} 29. a4 {[%clk 0:00:44]}  Bc5 {[%clk 0:01:08]} 30. Bxc5 {[%clk 0:00:40]}  dxc5 {[%clk 0:01:07]} 31. g3 {[%clk 0:00:26]}  g6 {[%clk 0:00:56]} 32. Rb7 {[%clk 0:00:25]}  Nxc6 {[%clk 0:00:44]} 33. Rxa7 {[%clk 0:00:23]}  Nxa7 {[%clk 0:00:44]} 34. Qxc5 {[%clk 0:00:22]}  Nc8 {[%clk 0:00:43]} 35. Qc7 {[%clk 0:00:20]}  Rf8 {[%clk 0:00:43]} 36. d6 {[%clk 0:00:20]}  Nxd6 {[%clk 0:00:34]} 37. Qxd6 {[%clk 0:00:20]}  f6 {[%clk 0:00:33]} 38. a5 {[%clk 0:00:20]}  Rf7 {[%clk 0:00:32]} 39. a6 {[%clk 0:00:20]}  Kg7 {[%clk 0:00:32]} 40. Qb6 {[%clk 0:00:19]}  h5 {[%clk 0:00:31]} 41. a7 {[%clk 0:00:19]}  h4 {[%clk 0:00:32]} 42. a8=Q {[%clk 0:00:19]}  h3 {[%clk 0:00:32]} 43. Qe6 {[%clk 0:00:17]}  Rc7 {[%clk 0:00:30]} 44. Qag8+ {[%clk 0:00:17]}  Kh6 {[%clk 0:00:30]} 45. Qxh3+ {[%clk 0:00:17]}  Kg5 {[%clk 0:00:30]} 46. Qh4+ {[%clk 0:00:17]}  Kf5 {[%clk 0:00:29]} 47. g4+ {[%clk 0:00:13]}  Ke4 {[%clk 0:00:25]} 48. Qxg6+ {[%clk 0:00:13]}  Kd4 {[%clk 0:00:22]} 49. g5+ {[%clk 0:00:13]}  Kc3 {[%clk 0:00:21]} 50. Qg3+ {[%clk 0:00:13]}  Kb2 {[%clk 0:00:20]} 51. Qe3 {[%clk 0:00:13]}  Rc1+ {[%clk 0:00:19]} 52. Kg2 {[%clk 0:00:12]}  Rc2 {[%clk 0:00:19]} 53. Qed3 {[%clk 0:00:12]}  Rc3 {[%clk 0:00:17]} 54. Qb1+ {[%clk 0:00:11]}  Ka3 {[%clk 0:00:18]} 55. Qa1+ {[%clk 0:00:12]}  Kb3 {[%clk 0:00:17]} 56. Qgb1+ {[%clk 0:00:12]}  Kc4 {[%clk 0:00:18]} 57. Qe4+ {[%clk 0:00:12]}  Kb3 {[%clk 0:00:17]} 58. Qaa4+ {[%clk 0:00:11]}  Kb2 {[%clk 0:00:17]} 59. Qe2+ {[%clk 0:00:12]}  Kc1 {[%clk 0:00:16]} 60. Qe1+ {[%clk 0:00:10]}  Kb2 {[%clk 0:00:15]} 61. Qd2+ {[%clk 0:00:11]}  Rc2 {[%clk 0:00:14]} 62. Qaxc2+ {[%clk 0:00:11]}  Ka3 {[%clk 0:00:14]} 63. Qdc3# {[%clk 0:00:11]} 1-0


[Site "https://www.chess.com"]

[Event "Titled Tuesday Blitz April 18 Early 2023"]
[White "DeyanKostov"]
[Black "Karthik Rajaa"]
[BlackFideId "25035215"]
[WhiteElo "2326"]
[BlackElo "2215"]
[Result "0-1"]
[Round "01"]
[TimeControl "180+2"]
[Date "2023.04.18"]
[WhiteClock "0:00:06"]
[BlackClock "0:00:10"]

1. d4 {[%clk 0:03:00]}  Nf6 {[%clk 0:02:59]} 2. c4 {[%clk 0:03:00]}  g6 {[%clk 0:02:59]} 3. Nc3 {[%clk 0:03:00]}  Bg7 {[%clk 0:02:59]} 4. e4 {[%clk 0:03:00]}  d6 {[%clk 0:02:59]} 5. Nf3 {[%clk 0:02:59]}  O-O {[%clk 0:03:00]} 6. h3 {[%clk 0:02:59]}  Nbd7 {[%clk 0:03:00]} 7. Be3 {[%clk 0:02:58]}  e5 {[%clk 0:03:01]} 8. d5 {[%clk 0:02:58]}  Nh5 {[%clk 0:02:59]} 9. g3 {[%clk 0:02:52]}  b6 {[%clk 0:02:32]} 10. Be2 {[%clk 0:02:43]}  a5 {[%clk 0:02:31]} 11. Qc2 {[%clk 0:02:40]}  Qe8 {[%clk 0:02:29]} 12. Nh4 {[%clk 0:02:36]}  Nhf6 {[%clk 0:02:23]} 13. g4 {[%clk 0:02:33]}  Nc5 {[%clk 0:02:21]} 14. Ng2 {[%clk 0:02:29]}  Nfd7 {[%clk 0:02:14]} 15. O-O-O {[%clk 0:02:25]}  Nb8 {[%clk 0:02:11]} 16. Rdg1 {[%clk 0:02:22]}  Nba6 {[%clk 0:02:09]} 17. a3 {[%clk 0:02:14]}  a4 {[%clk 0:02:07]} 18. h4 {[%clk 0:02:09]}  Nb3+ {[%clk 0:02:07]} 19. Kb1 {[%clk 0:02:09]}  Nd4 {[%clk 0:02:07]} 20. Qd2 {[%clk 0:02:05]}  Nc5 {[%clk 0:02:02]} 21. f3 {[%clk 0:02:01]}  Ncb3 {[%clk 0:01:59]} 22. Qe1 {[%clk 0:01:58]}  Nxe2 {[%clk 0:01:49]} 23. Qxe2 {[%clk 0:01:59]}  Nd4 {[%clk 0:01:47]} 24. Qf1 {[%clk 0:01:25]}  Ba6 {[%clk 0:01:44]} 25. Ne1 {[%clk 0:01:24]}  c6 {[%clk 0:01:38]} 26. h5 {[%clk 0:01:20]}  b5 {[%clk 0:01:34]} 27. dxc6 {[%clk 0:01:16]}  Qxc6 {[%clk 0:01:29]} 28. Bxd4 {[%clk 0:01:13]}  exd4 {[%clk 0:01:28]} 29. Nd5 {[%clk 0:00:58]}  Ra7 {[%clk 0:01:26]} 30. hxg6 {[%clk 0:00:55]}  fxg6 {[%clk 0:01:22]} 31. Qh3 {[%clk 0:00:48]}  Be5 {[%clk 0:01:15]} 32. g5 {[%clk 0:00:37]}  Bc8 {[%clk 0:01:15]} 33. Qf1 {[%clk 0:00:24]}  bxc4 {[%clk 0:01:03]} 34. Nc2 {[%clk 0:00:24]}  d3 {[%clk 0:00:39]} 35. Ncb4 {[%clk 0:00:24]}  Qc5 {[%clk 0:00:39]} 36. Rh4 {[%clk 0:00:24]}  Qd4 {[%clk 0:00:37]} 37. Nc3 {[%clk 0:00:17]}  Rb7 {[%clk 0:00:34]} 38. Rgh1 {[%clk 0:00:16]}  Be6 {[%clk 0:00:20]} 39. Qd1 {[%clk 0:00:16]}  Rfb8 {[%clk 0:00:18]} 40. Qd2 {[%clk 0:00:16]}  Rf8 {[%clk 0:00:14]} 41. f4 {[%clk 0:00:16]}  Bh8 {[%clk 0:00:13]} 42. f5 {[%clk 0:00:14]}  gxf5 {[%clk 0:00:13]} 43. exf5 {[%clk 0:00:15]}  Qe5 {[%clk 0:00:11]} 44. g6 {[%clk 0:00:15]}  h6 {[%clk 0:00:09]} 45. Rxh6 {[%clk 0:00:14]}  Bg7 {[%clk 0:00:08]} 46. Rh7 {[%clk 0:00:13]}  Bxf5 {[%clk 0:00:08]} 47. Nbd5 {[%clk 0:00:12]}  Bxg6 {[%clk 0:00:09]} 48. R7h2 {[%clk 0:00:11]}  Rfb8 {[%clk 0:00:09]} 49. Re1 {[%clk 0:00:10]}  Rxb2+ {[%clk 0:00:09]} 50. Ka1 {[%clk 0:00:07]}  Rxd2 {[%clk 0:00:08]} 51. Rxe5 {[%clk 0:00:08]}  Rxh2 {[%clk 0:00:08]} 52. Rg5 {[%clk 0:00:08]}  Rh1+ {[%clk 0:00:09]} 53. Ka2 {[%clk 0:00:08]}  Kh7 {[%clk 0:00:09]} 54. Ne7 {[%clk 0:00:07]}  Rh2+ {[%clk 0:00:09]} 55. Ka1 {[%clk 0:00:06]}  Bxc3# {[%clk 0:00:10]} 0-1


[Site "https://www.chess.com"]

[Event "Titled Tuesday Blitz April 18 Early 2023"]
[White "Skaric, Djuro"]
[Black "Sieciechowicz, Marcin"]
[WhiteFideId "934569"]
[BlackFideId "1130170"]
[WhiteElo "2282"]
[BlackElo "2302"]
[Result "0-1"]
[Round "01"]
[TimeControl "180+2"]
[Date "2023.04.18"]
[WhiteClock "0:01:01"]
[BlackClock "0:00:16"]

1. g3 {[%clk 0:03:00]}  e5 {[%clk 0:02:56]} 2. Bg2 {[%clk 0:03:00]}  d5 {[%clk 0:02:57]} 3. d3 {[%clk 0:03:01]}  Nf6 {[%clk 0:02:56]} 4. Nf3 {[%clk 0:03:01]}  c5 {[%clk 0:02:57]} 5. O-O {[%clk 0:03:02]}  Nc6 {[%clk 0:02:56]} 6. Nc3 {[%clk 0:03:02]}  d4 {[%clk 0:02:55]} 7. Ne4 {[%clk 0:03:02]}  Nxe4 {[%clk 0:02:54]} 8. dxe4 {[%clk 0:03:03]}  Be7 {[%clk 0:02:54]} 9. Ne1 {[%clk 0:03:03]}  O-O {[%clk 0:02:53]} 10. h3 {[%clk 0:03:03]}  f6 {[%clk 0:02:49]} 11. f4 {[%clk 0:03:03]}  Be6 {[%clk 0:02:49]} 12. f5 {[%clk 0:03:03]}  Bf7 {[%clk 0:02:49]} 13. g4 {[%clk 0:03:04]}  c4 {[%clk 0:02:49]} 14. Rf3 {[%clk 0:03:04]}  b5 {[%clk 0:02:40]} 15. Rg3 {[%clk 0:03:03]}  Qb6 {[%clk 0:02:26]} 16. Kh2 {[%clk 0:03:03]}  Rad8 {[%clk 0:02:15]} 17. h4 {[%clk 0:03:04]}  Kh8 {[%clk 0:01:59]} 18. Bf3 {[%clk 0:02:59]}  b4 {[%clk 0:01:44]} 19. Ng2 {[%clk 0:02:54]}  b3 {[%clk 0:01:44]} 20. g5 {[%clk 0:02:35]}  bxc2 {[%clk 0:01:43]} 21. Qxc2 {[%clk 0:02:35]}  d3 {[%clk 0:01:41]} 22. exd3 {[%clk 0:02:24]}  cxd3 {[%clk 0:01:41]} 23. Qd2 {[%clk 0:02:23]}  Bb4 {[%clk 0:01:40]} 24. Qe3 {[%clk 0:02:21]}  d2 {[%clk 0:01:34]} 25. g6 {[%clk 0:02:02]}  Bg8 {[%clk 0:01:28]} 26. gxh7 {[%clk 0:02:01]}  Bxh7 {[%clk 0:01:28]} 27. Bxd2 {[%clk 0:01:48]}  Rxd2 {[%clk 0:01:23]} 28. Qb3 {[%clk 0:01:35]}  Nd4 {[%clk 0:01:22]} 29. Qa4 {[%clk 0:01:35]}  Qa5 {[%clk 0:00:41]} 30. Qxa5 {[%clk 0:01:26]}  Bxa5 {[%clk 0:00:41]} 31. Rb1 {[%clk 0:01:23]}  Rc8 {[%clk 0:00:35]} 32. Bh5 {[%clk 0:01:22]}  Rcc2 {[%clk 0:00:30]} 33. Kh3 {[%clk 0:01:21]}  Bb6 {[%clk 0:00:25]} 34. b4 {[%clk 0:01:17]}  Rxa2 {[%clk 0:00:18]} 35. Rc1 {[%clk 0:01:14]}  Rac2 {[%clk 0:00:18]} 36. Rxc2 {[%clk 0:01:11]}  Rxc2 {[%clk 0:00:17]} 37. Rd3 {[%clk 0:01:06]}  Bg8 {[%clk 0:00:17]} 38. Ne1 {[%clk 0:01:04]}  Rc1 {[%clk 0:00:17]} 39. Nf3 {[%clk 0:01:03]}  Bc4 {[%clk 0:00:17]} 40. Bg6 {[%clk 0:01:01]}  Bxd3 {[%clk 0:00:16]} 0-1


[Site "https://www.chess.com"]